[Event "MCR rapid mládeže 2023 U16"]
[Site "Harachov, Czech Republic"]
[Date "2023.09.09"]
[Round "3.9"]
[White "Dorazilova, Kristyna"]
[Black "Horkova, Tereza"]
[Result "0-1"]
[TimeControl "20min+5s/move"]
[WhiteElo "1517"]
[BlackElo "1720"]

1. e4 {[%clk 00:20:09]} c5 {[%clk 00:20:09]} {[%emt 00:00:02]} 2. Nc3 {[%clk
00:20:13]} {[%emt 00:00:01]} e6 {[%clk 00:20:12]} {[%emt 00:00:02]} 3. g3
{[%clk 00:20:17]} {[%emt 00:00:01]} d5 {[%clk 00:20:10]} {[%emt 00:00:06]} 4.
d3 {[%clk 00:18:39]} {[%emt 00:01:43]} d4 {[%clk 00:19:27]} {[%emt 00:00:48]} 5.
Nce2 {[%clk 00:18:42]} {[%emt 00:00:02]} Bd6 {[%clk 00:18:32]} {[%emt
00:01:00]} 6. Bg2 {[%clk 00:18:42]} {[%emt 00:00:05]} e5 {[%clk 00:18:12]}
{[%emt 00:00:26]} 7. f4 {[%clk 00:18:03]} {[%emt 00:00:44]} f6 {[%clk
00:17:09]} {[%emt 00:01:07]} 8. Nf3 {[%clk 00:17:44]} {[%emt 00:00:25]} Ne7
{[%clk 00:16:33]} {[%emt 00:00:41]} 9. O-O {[%clk 00:17:08]} {[%emt 00:00:43]}
Nbc6 {[%clk 00:15:54]} {[%emt 00:00:43]} 10. f5 {[%clk 00:15:56]} {[%emt
00:01:18]} Bd7 {[%clk 00:14:52]} {[%emt 00:01:06]} 11. c3 {[%clk 00:13:48]}
{[%emt 00:02:13]} Qc8 {[%clk 00:12:22]} {[%emt 00:02:35]} 12. Nh4 {[%clk
00:12:26]} {[%emt 00:01:27]} Qc7 {[%clk 00:10:43]} {[%emt 00:01:44]} 13. Bd2
{[%clk 00:12:16]} {[%emt 00:00:15]} O-O-O {[%clk 00:10:43]} {[%emt 00:00:04]}
14. cxd4 {[%clk 00:11:21]} {[%emt 00:01:00]} cxd4 {[%clk 00:09:36]} {[%emt
00:01:12]} 15. Rc1 {[%clk 00:11:14]} {[%emt 00:00:12]} Qb6 {[%clk 00:09:18]}
{[%emt 00:00:23]} 16. Qc2 {[%clk 00:09:58]} {[%emt 00:01:21]} Kb8 {[%clk
00:09:03]} {[%emt 00:00:20]} 17. b3 {[%clk 00:08:34]} {[%emt 00:01:30]} Rdf8
{[%clk 00:07:38]} {[%emt 00:01:29]} 18. Ra1 {[%clk 00:06:35]} {[%emt 00:02:05]}
Ba3 {[%clk 00:06:52]} {[%emt 00:00:51]} 19. Bc1 {[%clk 00:05:48]} {[%emt
00:00:52]} Nb4 {[%clk 00:06:37]} {[%emt 00:00:20]} 20. Qd2 {[%clk 00:05:40]}
{[%emt 00:00:11]} Qa5 {[%clk 00:05:01]} {[%emt 00:01:42]} 21. Bxa3 {[%clk
00:04:58]} {[%emt 00:00:47]} Qxa3 {[%clk 00:05:04]} {[%emt 00:00:03]} 22. Nf3
{[%clk 00:04:04]} {[%emt 00:00:58]} Bb5 {[%clk 00:04:35]} {[%emt 00:00:34]} 23.
Ne1 {[%clk 00:03:37]} {[%emt 00:00:33]} Rc8 {[%clk 00:04:30]} {[%emt 00:00:10]}
24. Bh3 {[%clk 00:03:15]} {[%emt 00:00:26]} Rc7 {[%clk 00:04:29]} {[%emt
00:00:07]} 25. g4 {[%clk 00:02:51]} {[%emt 00:00:29]} h6 {[%clk 00:04:19]}
{[%emt 00:00:15]} 26. Bg2 {[%clk 00:02:25]} {[%emt 00:00:31]} Rhc8 {[%clk
00:04:23]} {[%emt 00:00:01]} 27. h4 {[%clk 00:02:29]} {[%emt 00:00:02]} Nc2
{[%clk 00:03:42]} {[%emt 00:00:46]} 28. Rc1 {[%clk 00:01:56]} {[%emt 00:00:38]}
Qxa2 {[%clk 00:03:33]} {[%emt 00:00:14]} 29. Nxc2 {[%clk 00:01:22]} {[%emt
00:00:38]} Rxc2 {[%clk 00:03:36]} {[%emt 00:00:03]} 30. Rxc2 {[%clk 00:00:54]}
{[%emt 00:00:32]} Qxc2 {[%clk 00:02:03]} {[%emt 00:01:39]} 31. Qb4 {[%emt
00:00:18]} Qxe2 {[%clk 00:01:12]} {[%emt 00:00:54]} 32. Qxe7 {[%clk 00:00:27]}
{[%emt 00:00:21]} Qxg4 {[%clk 00:00:48]} {[%emt 00:00:29]} 33. Qb4 {[%clk
00:00:12]} {[%emt 00:00:20]} Bxd3 {[%clk 00:00:37]} {[%emt 00:00:16]} 34. Ra1
{[%clk 00:00:13]} {[%emt 00:00:04]} Bxe4 {[%clk 00:00:13]} {[%emt 00:00:29]} 35.
Qd6+ {[%clk 00:00:12]} {[%emt 00:00:06]} Ka8 {[%clk 00:00:15]} {[%emt
00:00:02]} 36. Ra2 {[%clk 00:00:09]} {[%emt 00:00:09]} Bxg2 {[%clk 00:00:12]}
{[%emt 00:00:08]} 37. Rxg2 {[%clk 00:00:12]} {[%emt 00:00:02]} Qd1+ {[%emt
00:00:02]} 38. Kh2 {[%clk 00:00:15]} {[%emt 00:00:01]} Qxb3 {[%clk 00:00:18]}
{[%emt 00:00:03]} 39. Qd7 {[%clk 00:00:13]} {[%emt 00:00:06]} Qc4 {[%clk
00:00:16]} {[%emt 00:00:07]} 40. Qxg7 {[%clk 00:00:17]} {[%emt 00:00:02]} d3
{[%clk 00:00:18]} {[%emt 00:00:03]} 41. Qxf6 {[%clk 00:00:18]} {[%emt
00:00:03]} Qc3 {[%clk 00:00:14]} {[%emt 00:00:09]} 42. Qxh6 {[%clk 00:00:12]}
{[%emt 00:00:11]} e4 {[%clk 00:00:14]} {[%emt 00:00:05]} 43. Qe3 {[%clk
00:00:15]} {[%emt 00:00:02]} Qe5+ {[%clk 00:00:16]} {[%emt 00:00:03]} 44. Kh3
{[%clk 00:00:08]} {[%emt 00:00:11]} Qxf5+ {[%clk 00:00:20]} {[%emt 00:00:02]}
45. Kh2 {[%clk 00:00:10]} {[%emt 00:00:03]} Qe5+ {[%clk 00:00:14]} {[%emt
00:00:11]} 46. Rg3 {[%clk 00:00:14]} {[%emt 00:00:08]} Rg8 {[%clk 00:00:13]}
{[%emt 00:00:07]} 47. Kh3 {[%clk 00:00:15]} {[%emt 00:00:05]} Rxg3+ {[%clk
00:00:13]} {[%emt 00:00:05]} 48. Qxg3 {[%clk 00:00:20]} {[%emt 00:00:01]} Qxg3+
{[%clk 00:00:15]} {[%emt 00:00:02]} 49. Kxg3 {[%clk 00:00:23]} {[%emt
00:00:01]} d2 {[%clk 00:00:19]} {[%emt 00:00:01]} 50. h5 {[%clk 00:00:27]}
{[%emt 00:00:02]} d1=Q {[%clk 00:00:20]} {[%emt 00:00:04]} 51. h6 {[%clk
00:00:30]} {[%emt 00:00:02]} Qh5 {[%clk 00:00:22]} {[%emt 00:00:02]} 52. Kf4
{[%clk 00:00:34]} {[%emt 00:00:01]} Qxh6+ {[%clk 00:00:26]} {[%emt 00:00:02]}
53. Kxe4 {[%clk 00:00:38]} a5 {[%clk 00:00:29]} {[%emt 00:00:02]} 54. Kd4
{[%clk 00:00:41]} {[%emt 00:00:02]} b5 {[%clk 00:00:32]} {[%emt 00:00:02]} 55.
Kc3 {[%clk 00:00:45]} {[%emt 00:00:01]} a4 {[%clk 00:00:35]} {[%emt 00:00:02]}
56. Kb4 {[%clk 00:00:49]} Qb6 {[%clk 00:00:38]} {[%emt 00:00:02]} 57. Ka3
{[%clk 00:00:52]} {[%emt 00:00:02]} Qc5+ {[%clk 00:00:42]} 58. Kb2 {[%clk
00:00:56]} {[%emt 00:00:01]} b4 {[%clk 00:00:46]} {[%emt 00:00:01]} 59. Ka2
{[%clk 00:01:00]} {[%emt 00:00:01]} Qc4+ {[%clk 00:00:49]} {[%emt 00:00:02]} 60.
Kb2 {[%clk 00:01:04]} {[%emt 00:00:01]} a3+ {[%clk 00:00:52]} {[%emt 00:00:02]}
61. Ka1 {[%clk 00:00:58]} {[%emt 00:00:10]} Qc3+ {[%clk 00:00:55]} {[%emt
00:00:02]} 62. Kb1 {[%clk 00:01:02]} {[%emt 00:00:02]} Qb2# {[%emt 00:00:01]}
0-1

[Event "MCR rapid mládeže 2023 U16"]
[Site "Harachov, Czech Republic"]
[Date "2023.09.09"]
[Round "3.10"]
[White "Kammova, Katerina"]
[Black "Barteckova, Valerie"]
[Result "0-1"]
[TimeControl "20min+5s/move"]
[WhiteElo "1393"]
[BlackElo "1498"]

1. e4 {[%clk 00:20:08]} {[%emt 00:00:01]} e6 {[%clk 00:20:09]} {[%emt
00:00:01]} 2. d4 {[%clk 00:20:10]} {[%emt 00:00:03]} d5 {[%clk 00:20:13]}
{[%emt 00:00:01]} 3. exd5 {[%clk 00:20:14]} {[%emt 00:00:02]} exd5 {[%clk
00:20:17]} {[%emt 00:00:02]} 4. c4 {[%clk 00:20:11]} {[%emt 00:00:07]} Nf6
{[%clk 00:19:52]} {[%emt 00:00:30]} 5. Nc3 {[%clk 00:20:14]} {[%emt 00:00:02]}
Nc6 {[%clk 00:19:46]} {[%emt 00:00:12]} 6. Be3 {[%clk 00:19:49]} {[%emt
00:00:29]} Bf5 {[%clk 00:18:57]} {[%emt 00:00:54]} 7. Nf3 {[%clk 00:18:21]}
{[%emt 00:01:33]} Be7 {[%clk 00:18:12]} {[%emt 00:00:50]} 8. Be2 {[%clk
00:17:50]} {[%emt 00:00:36]} O-O {[%clk 00:18:14]} {[%emt 00:00:03]} 9. O-O
{[%clk 00:17:51]} {[%emt 00:00:03]} Re8 {[%clk 00:18:16]} {[%emt 00:00:04]} 10.
b3 {[%clk 00:17:36]} {[%emt 00:00:19]} Ba3 {[%clk 00:16:28]} {[%emt 00:01:52]}
11. Bc1 {[%clk 00:17:26]} {[%emt 00:00:17]} Bb4 {[%clk 00:15:33]} {[%emt
00:01:00]} 12. Bb2 {[%clk 00:17:19]} {[%emt 00:00:12]} Bg4 {[%clk 00:15:03]}
{[%emt 00:00:34]} 13. a3 {[%clk 00:17:06]} {[%emt 00:00:18]} Bxc3 {[%clk
00:14:25]} {[%emt 00:00:44]} 14. Bxc3 {[%clk 00:17:00]} {[%emt 00:00:11]} Ne4
{[%clk 00:13:58]} {[%emt 00:00:32]} 15. Bb2 {[%clk 00:16:39]} {[%emt 00:00:25]}
Nf6 {[%clk 00:11:54]} {[%emt 00:02:10]} 16. c5 {[%clk 00:15:22]} {[%emt
00:01:21]} Re7 {[%clk 00:11:01]} {[%emt 00:00:58]} 17. h3 {[%clk 00:14:53]}
{[%emt 00:00:34]} Bh5 {[%clk 00:11:02]} {[%emt 00:00:04]} 18. Re1 {[%clk
00:12:58]} {[%emt 00:02:00]} Qe8 {[%clk 00:10:22]} {[%emt 00:00:45]} 19. Ne5
{[%clk 00:12:14]} {[%emt 00:00:49]} Bxe2 {[%clk 00:09:45]} {[%emt 00:00:43]} 20.
Rxe2 {[%clk 00:11:57]} {[%emt 00:00:22]} Nxe5 {[%clk 00:07:59]} {[%emt
00:01:50]} 21. dxe5 {[%clk 00:11:45]} {[%emt 00:00:17]} Nd7 {[%clk 00:08:04]}
{[%emt 00:00:01]} 22. Qxd5 {[%clk 00:10:51]} {[%emt 00:00:58]} c6 {[%clk
00:07:56]} {[%emt 00:00:13]} 23. Qd4 {[%clk 00:10:09]} {[%emt 00:00:46]} Rd8
{[%clk 00:07:45]} {[%emt 00:00:18]} 24. Qc3 {[%clk 00:10:01]} {[%emt 00:00:12]}
Nf8 {[%clk 00:07:23]} {[%emt 00:00:27]} 25. Rae1 {[%clk 00:09:02]} {[%emt
00:01:05]} Ne6 {[%clk 00:07:17]} {[%emt 00:00:12]} 26. b4 {[%clk 00:08:48]}
{[%emt 00:00:19]} Red7 {[%clk 00:06:57]} {[%emt 00:00:25]} 27. Re3 {[%clk
00:07:36]} {[%emt 00:01:16]} Qf8 {[%clk 00:05:57]} {[%emt 00:01:06]} 28. Bc1
{[%clk 00:06:16]} {[%emt 00:01:26]} Nf4 {[%clk 00:04:14]} {[%emt 00:01:47]} 29.
Bb2 {[%clk 00:04:59]} {[%emt 00:01:23]} Nd5 {[%clk 00:03:29]} {[%emt 00:00:50]}
30. Qc2 {[%clk 00:04:41]} {[%emt 00:00:22]} Nxe3 {[%clk 00:03:22]} {[%emt
00:00:12]} 31. Rxe3 {[%clk 00:04:43]} {[%emt 00:00:03]} Rd1+ {[%clk 00:02:50]}
{[%emt 00:00:37]} 32. Kh2 {[%clk 00:04:45]} {[%emt 00:00:02]} R8d2 {[%clk
00:02:50]} {[%emt 00:00:07]} 33. Qc3 {[%clk 00:04:07]} {[%emt 00:00:42]} Rxf2
{[%clk 00:02:24]} {[%emt 00:00:30]} 34. Bc1 {[%clk 00:03:06]} {[%emt 00:01:07]}
Rff1 {[%clk 00:01:56]} {[%emt 00:00:33]} 35. Bb2 {[%clk 00:03:08]} {[%emt
00:00:03]} Qb8 {[%clk 00:01:37]} {[%emt 00:00:25]} 36. Rd3 {[%clk 00:02:07]}
{[%emt 00:01:06]} Rxd3 {[%clk 00:01:01]} {[%emt 00:00:41]} 37. Qxd3 {[%clk
00:02:11]} Rf2 {[%clk 00:00:58]} {[%emt 00:00:07]} 38. Bd4 {[%clk 00:01:49]}
{[%emt 00:00:29]} Qd8 {[%clk 00:00:37]} {[%emt 00:00:27]} 39. Kg3 {[%clk
00:00:22]} {[%emt 00:01:32]} Ra2 {[%clk 00:00:34]} {[%emt 00:00:08]} 40. Qb3
{[%clk 00:00:18]} {[%emt 00:00:09]} Qd5 {[%clk 00:00:36]} {[%emt 00:00:03]} 41.
Qxd5 {[%clk 00:00:16]} {[%emt 00:00:07]} cxd5 {[%emt 00:00:11]} 42. Kf3 {[%clk
00:00:10]} {[%emt 00:00:01]} Rxa3+ {[%clk 00:00:43]} {[%emt 00:00:02]} 43. Kf4
{[%clk 00:00:14]} Rb3 {[%clk 00:00:42]} {[%emt 00:00:05]} 44. c6 {[%clk
00:00:14]} {[%emt 00:00:06]} bxc6 {[%clk 00:00:44]} {[%emt 00:00:04]} 45. Bxa7
{[%clk 00:00:17]} {[%emt 00:00:01]} Rxb4+ {[%clk 00:00:47]} {[%emt 00:00:02]}
46. Ke3 {[%clk 00:00:18]} {[%emt 00:00:04]} Re4+ {[%clk 00:00:48]} {[%emt
00:00:02]} 47. Kf3 {[%clk 00:00:22]} {[%emt 00:00:03]} Rxe5 {[%clk 00:00:51]}
{[%emt 00:00:02]} 0-1

[Event "MCR rapid mládeže 2023 U16"]
[Site "Harachov, Czech Republic"]
[Date "2023.09.09"]
[Round "3.11"]
[White "Slivova, Linda"]
[Black "Kaplanova, Dominika"]
[Result "1-0"]
[TimeControl "20min+5s/move"]
[WhiteElo "1386"]
[BlackElo "1461"]

1. e4 {[%clk 00:20:07]} {[%emt 00:00:02]} c6 {[%clk 00:20:02]} {[%emt
00:00:09]} 2. d3 {[%clk 00:19:55]} {[%emt 00:00:16]} d5 {[%clk 00:20:01]}
{[%emt 00:00:06]} 3. Nd2 {[%clk 00:19:58]} {[%emt 00:00:02]} dxe4 {[%clk
00:19:51]} {[%emt 00:00:15]} 4. dxe4 {[%clk 00:20:01]} {[%emt 00:00:02]} Nd7
{[%clk 00:19:04]} {[%emt 00:00:53]} 5. Ngf3 {[%clk 00:19:55]} {[%emt 00:00:11]}
Qc7 {[%clk 00:18:33]} {[%emt 00:00:35]} 6. Bc4 {[%clk 00:18:49]} {[%emt
00:01:11]} Ngf6 {[%clk 00:18:00]} {[%emt 00:00:38]} 7. O-O {[%clk 00:18:06]}
{[%emt 00:00:48]} e6 {[%clk 00:17:44]} {[%emt 00:00:21]} 8. Re1 {[%clk
00:16:13]} {[%emt 00:01:57]} Bc5 {[%clk 00:16:27]} {[%emt 00:01:23]} 9. Nb3
{[%clk 00:14:59]} {[%emt 00:01:20]} Bb6 {[%clk 00:14:17]} {[%emt 00:02:14]} 10.
Be3 {[%clk 00:12:03]} {[%emt 00:03:01]} Bxe3 {[%clk 00:12:24]} {[%emt
00:01:59]} 11. Rxe3 {[%clk 00:12:06]} {[%emt 00:00:02]} Ng4 {[%clk 00:11:50]}
{[%emt 00:00:39]} 12. Re1 {[%clk 00:09:32]} {[%emt 00:02:39]} O-O {[%clk
00:10:25]} {[%emt 00:01:30]} 13. h3 {[%clk 00:08:40]} {[%emt 00:00:57]} Nge5
{[%clk 00:09:49]} {[%emt 00:00:41]} 14. Nbd2 {[%clk 00:06:51]} {[%emt
00:01:55]} b6 {[%clk 00:09:04]} {[%emt 00:00:51]} 15. Bb3 {[%clk 00:05:00]}
{[%emt 00:01:56]} c5 {[%clk 00:08:43]} {[%emt 00:00:26]} 16. Nxe5 {[%clk
00:03:58]} {[%emt 00:01:07]} Nxe5 {[%clk 00:08:43]} {[%emt 00:00:05]} 17. c3
{[%clk 00:03:12]} {[%emt 00:00:51]} Rd8 {[%clk 00:06:40]} {[%emt 00:02:07]} 18.
Re3 {[%clk 00:02:12]} {[%emt 00:01:05]} Nd3 {[%clk 00:05:49]} {[%emt 00:00:56]}
19. Qc2 {[%clk 00:01:39]} {[%emt 00:00:38]} Ba6 {[%clk 00:04:48]} {[%emt
00:01:06]} 20. Bc4 {[%clk 00:01:42]} {[%emt 00:00:02]} Bxc4 {[%clk 00:04:02]}
{[%emt 00:00:51]} 21. Nxc4 {[%clk 00:01:45]} {[%emt 00:00:01]} Nf4 {[%clk
00:03:53]} {[%emt 00:00:14]} 22. Rd1 {[%clk 00:01:26]} {[%emt 00:00:24]} Rxd1+
{[%clk 00:03:30]} {[%emt 00:00:28]} 23. Qxd1 {[%clk 00:01:30]} Rd8 {[%clk
00:03:34]} {[%emt 00:00:02]} 24. Qc2 {[%clk 00:01:17]} {[%emt 00:00:18]} Qd7
{[%clk 00:02:34]} {[%emt 00:01:03]} 25. Ne5 {[%clk 00:00:56]} {[%emt 00:00:26]}
Qd6 {[%clk 00:02:08]} {[%emt 00:00:31]} 26. Nc4 {[%clk 00:00:38]} {[%emt
00:00:24]} Qd1+ {[%clk 00:02:02]} {[%emt 00:00:11]} 27. Qxd1 {[%clk 00:00:42]}
{[%emt 00:00:02]} Rxd1+ {[%clk 00:02:06]} {[%emt 00:00:01]} 28. Kh2 {[%clk
00:00:46]} Rd3 {[%clk 00:01:46]} {[%emt 00:00:23]} 29. Re1 {[%clk 00:00:23]}
{[%emt 00:00:29]} f6 {[%clk 00:01:19]} {[%emt 00:00:33]} 30. g3 {[%clk
00:00:26]} {[%emt 00:00:02]} Ng6 {[%clk 00:01:15]} {[%emt 00:00:08]} 31. Re2
{[%clk 00:00:23]} {[%emt 00:00:08]} e5 {[%clk 00:01:14]} {[%emt 00:00:07]} 32.
Ne3 {[%clk 00:00:23]} {[%emt 00:00:06]} Ne7 {[%clk 00:01:03]} {[%emt 00:00:15]}
33. Kg2 {[%clk 00:00:27]} g6 {[%clk 00:01:01]} {[%emt 00:00:08]} 34. Ng4 {[%clk
00:00:26]} {[%emt 00:00:06]} Kf7 {[%clk 00:00:53]} {[%emt 00:00:13]} 35. Re3
{[%clk 00:00:30]} {[%emt 00:00:01]} Rd2 {[%clk 00:00:38]} {[%emt 00:00:19]} 36.
Rf3 {[%clk 00:00:27]} {[%emt 00:00:09]} f5 {[%clk 00:00:16]} {[%emt 00:00:28]}
37. exf5 {[%clk 00:00:24]} {[%emt 00:00:08]} gxf5 {[%clk 00:00:12]} {[%emt
00:00:09]} 38. Nxe5+ {[%clk 00:00:27]} {[%emt 00:00:02]} Ke6 {[%clk 00:00:11]}
{[%emt 00:00:06]} 39. Nc4 {[%clk 00:00:28]} {[%emt 00:00:04]} 1-0

[Event "MCR rapid mládeže 2023 U16"]
[Site "Harachov, Czech Republic"]
[Date "2023.09.09"]
[Round "3.12"]
[White "Nguyen, Nhat Minh Thu"]
[Black "Mikesova, Lenka"]
[Result "0-1"]
[TimeControl "20min+5s/move"]
[WhiteElo "1405"]
[BlackElo "1410"]

1. e4 {[%clk 00:20:09]} e5 {[%clk 00:20:09]} {[%emt 00:00:01]} 2. Bc4 {[%clk
00:20:10]} {[%emt 00:00:04]} Nf6 {[%clk 00:19:52]} {[%emt 00:00:22]} 3. d3
{[%clk 00:20:13]} {[%emt 00:00:02]} Nc6 {[%clk 00:19:51]} {[%emt 00:00:06]} 4.
Nc3 {[%clk 00:20:02]} {[%emt 00:00:16]} Bb4 {[%clk 00:19:48]} {[%emt 00:00:07]}
5. Bd2 {[%clk 00:19:55]} {[%emt 00:00:12]} O-O {[%clk 00:19:40]} {[%emt
00:00:12]} 6. a3 {[%clk 00:19:40]} {[%emt 00:00:21]} Bc5 {[%clk 00:19:33]}
{[%emt 00:00:12]} 7. Nf3 {[%clk 00:19:35]} {[%emt 00:00:10]} d6 {[%clk
00:19:26]} {[%emt 00:00:12]} 8. h3 {[%clk 00:19:36]} {[%emt 00:00:03]} Be6
{[%emt 00:00:08]} 9. Ba2 Bxa2 {[%clk 00:19:23]} 10. Rxa2 {[%clk 00:17:19]} d5
{[%clk 00:17:44]} {[%emt 00:05:02]} 11. Bg5 {[%clk 00:14:11]} dxe4 {[%emt
00:03:27]} 12. Bxf6 Qxf6 13. Nxe4 Qe6 14. Ra1 Bb6 15. O-O Rad8 16. Qe2 Nd4 17.
Nxd4 exd4 18. Rfe1 Rfe8 19. Ng3 Qxe2 20. Rxe2 Rxe2 {[%clk 00:16:50]} 21. Nxe2
{[%clk 00:13:15]} Re8 {[%emt 00:10:01]} 22. Re1 c5 {[%clk 00:12:22]} 23. Kf1
{[%clk 00:09:43]} Bc7 {[%clk 00:11:26]} {[%emt 00:02:02]} 24. c3 {[%emt
00:00:28]} dxc3 {[%clk 00:11:19]} {[%emt 00:00:09]} 25. Nxc3 {[%clk 00:09:04]}
Kf8 {[%clk 00:10:44]} {[%emt 00:00:53]} 26. Rxe8+ {[%clk 00:08:33]} Kxe8 {[%clk
00:10:47]} {[%emt 00:00:38]} 27. Ke2 {[%emt 00:01:16]} Kd7 28. Ke3 {[%clk
00:08:19]} {[%emt 00:00:03]} Ke6 {[%clk 00:09:43]} {[%emt 00:00:18]} 29. f3
{[%clk 00:08:06]} {[%emt 00:00:19]} f5 {[%clk 00:08:52]} {[%emt 00:00:56]} 30.
Ne2 {[%clk 00:06:52]} {[%emt 00:01:19]} b5 {[%clk 00:07:47]} {[%emt 00:01:10]}
31. b3 {[%clk 00:06:33]} {[%emt 00:00:24]} a5 {[%clk 00:05:39]} {[%emt
00:02:14]} 32. d4 {[%clk 00:03:16]} {[%emt 00:03:22]} b4 {[%clk 00:03:09]}
{[%emt 00:02:34]} 33. a4 {[%clk 00:02:54]} {[%emt 00:00:27]} Kd5 {[%clk
00:02:40]} {[%emt 00:00:35]} 34. dxc5 {[%clk 00:02:26]} {[%emt 00:00:33]} Kxc5
{[%clk 00:01:40]} {[%emt 00:01:04]} 35. Nd4 {[%clk 00:02:00]} {[%emt 00:00:31]}
Bf4+ {[%clk 00:00:43]} {[%emt 00:01:03]} 36. Kd3 {[%clk 00:02:02]} {[%emt
00:00:03]} Kd5 {[%clk 00:00:25]} {[%emt 00:00:23]} 37. Nxf5 {[%clk 00:01:56]}
{[%emt 00:00:10]} g6 {[%clk 00:00:23]} {[%emt 00:00:06]} 38. Ne3+ {[%clk
00:01:48]} {[%emt 00:00:13]} Kc5 {[%clk 00:00:14]} {[%emt 00:00:15]} 39. Nf1
{[%clk 00:01:41]} {[%emt 00:00:11]} Kd5 {[%clk 00:00:16]} {[%emt 00:00:03]} 40.
g3 {[%emt 00:00:03]} Bc7 {[%clk 00:00:18]} {[%emt 00:00:01]} 41. Ne3+ {[%clk
00:01:35]} Ke6 {[%clk 00:00:21]} {[%emt 00:00:17]} 42. g4 {[%clk 00:01:30]}
{[%emt 00:00:09]} h5 {[%clk 00:00:23]} {[%emt 00:00:03]} 43. Nc4 {[%clk
00:01:15]} {[%emt 00:00:20]} hxg4 {[%clk 00:00:25]} {[%emt 00:00:04]} 44. hxg4
{[%clk 00:01:10]} {[%emt 00:00:10]} Kf6 {[%clk 00:00:27]} {[%emt 00:00:03]} 45.
Ke4 {[%clk 00:01:14]} {[%emt 00:00:01]} Kg5 {[%clk 00:00:27]} {[%emt 00:00:05]}
46. Ne3 {[%clk 00:01:10]} {[%emt 00:00:09]} Bb8 {[%clk 00:00:29]} {[%emt
00:00:03]} 47. Nc4 {[%clk 00:01:04]} {[%emt 00:00:11]} Bc7 {[%clk 00:00:32]}
{[%emt 00:00:01]} 48. Ne5 {[%clk 00:00:47]} {[%emt 00:00:22]} Kf6 {[%clk
00:00:30]} {[%emt 00:00:07]} 49. Nd7+ {[%clk 00:00:45]} {[%emt 00:00:07]} Kg5
{[%clk 00:00:29]} {[%emt 00:00:07]} 50. Nc5 {[%clk 00:00:46]} {[%emt 00:00:04]}
Kh4 {[%clk 00:00:28]} {[%emt 00:00:05]} 51. Ne6 {[%clk 00:00:35]} {[%emt
00:00:16]} Bd6 {[%clk 00:00:27]} {[%emt 00:00:07]} 52. g5 {[%clk 00:00:23]}
{[%emt 00:00:16]} Kg3 {[%clk 00:00:25]} {[%emt 00:00:07]} 53. f4 {[%clk
00:00:24]} {[%emt 00:00:05]} Kg4 {[%clk 00:00:25]} {[%emt 00:00:05]} 54. Nd4
{[%clk 00:00:27]} {[%emt 00:00:01]} Bxf4 {[%clk 00:00:27]} {[%emt 00:00:04]} 55.
Nc6 {[%clk 00:00:18]} {[%emt 00:00:14]} Bc7 {[%clk 00:00:26]} {[%emt 00:00:06]}
56. Ne7 {[%clk 00:00:15]} {[%emt 00:00:07]} Kxg5 {[%clk 00:00:27]} {[%emt
00:00:05]} 57. Nd5 {[%clk 00:00:17]} {[%emt 00:00:03]} Bd8 {[%clk 00:00:29]}
{[%emt 00:00:03]} 58. Kf3 {[%clk 00:00:18]} {[%emt 00:00:05]} Kh4 {[%clk
00:00:31]} {[%emt 00:00:02]} 59. Ne3 {[%clk 00:00:20]} {[%emt 00:00:04]} g5
{[%clk 00:00:31]} {[%emt 00:00:05]} 60. Ng2+ {[%clk 00:00:23]} {[%emt
00:00:01]} Kh3 {[%clk 00:00:35]} {[%emt 00:00:01]} 61. Ne3 {[%clk 00:00:27]}
{[%emt 00:00:02]} Bb6 {[%clk 00:00:34]} {[%emt 00:00:06]} 62. Ng4 {[%clk
00:00:23]} {[%emt 00:00:09]} Bc5 {[%clk 00:00:31]} {[%emt 00:00:08]} 63. Ne5
{[%clk 00:00:25]} {[%emt 00:00:03]} Bd4 {[%clk 00:00:29]} {[%emt 00:00:07]} 64.
Ng4 {[%clk 00:00:27]} {[%emt 00:00:03]} Bc3 {[%clk 00:00:27]} {[%emt 00:00:07]}
65. Nf2 {[%clk 00:00:30]} {[%emt 00:00:01]} Kh2 {[%clk 00:00:24]} {[%emt
00:00:07]} 66. Ng4+ {[%clk 00:00:33]} {[%emt 00:00:02]} Kg1 {[%clk 00:00:26]}
{[%emt 00:00:03]} 67. Ne3 {[%emt 00:00:04]} Bd4 {[%clk 00:00:23]} {[%emt
00:00:07]} 68. Ng4 {[%clk 00:00:15]} {[%emt 00:00:25]} Kf1 {[%clk 00:00:26]}
{[%emt 00:00:02]} 69. Ke4 {[%clk 00:00:18]} {[%emt 00:00:02]} Bb6 {[%clk
00:00:28]} {[%emt 00:00:03]} 70. Kf3 {[%clk 00:00:16]} {[%emt 00:00:08]} Ke1
{[%clk 00:00:31]} {[%emt 00:00:02]} 71. Ke4 {[%clk 00:00:11]} {[%emt 00:00:09]}
Kd2 {[%clk 00:00:33]} {[%emt 00:00:03]} 72. Nf6 {[%clk 00:00:09]} {[%emt
00:00:07]} Kc2 {[%clk 00:00:30]} {[%emt 00:00:08]} 73. Nd5 {[%emt 00:00:03]}
Bd8 {[%clk 00:00:34]} 74. Ke3 {[%clk 00:00:10]} {[%emt 00:00:07]} Kxb3 {[%clk
00:00:37]} {[%emt 00:00:02]} 75. Kd3 {[%clk 00:00:14]} Ka3 {[%clk 00:00:38]}
{[%emt 00:00:04]} 76. Ne3 {[%clk 00:00:16]} {[%emt 00:00:03]} b3 {[%clk
00:00:41]} {[%emt 00:00:02]} 77. Nc4+ {[%clk 00:00:20]} {[%emt 00:00:01]} Kb4
{[%clk 00:00:40]} {[%emt 00:00:06]} 78. Nb2 {[%clk 00:00:22]} {[%emt 00:00:02]}
g4 {[%clk 00:00:42]} {[%emt 00:00:03]} 79. Nd1 {[%clk 00:00:18]} {[%emt
00:00:10]} Kxa4 {[%clk 00:00:43]} {[%emt 00:00:03]} 80. Nc3+ {[%clk 00:00:18]}
{[%emt 00:00:05]} Kb4 {[%clk 00:00:47]} {[%emt 00:00:02]} 81. Nd5+ {[%clk
00:00:22]} {[%emt 00:00:01]} Kc5 {[%clk 00:00:47]} {[%emt 00:00:05]} 82. Ne3
{[%clk 00:00:22]} {[%emt 00:00:04]} g3 {[%clk 00:00:48]} {[%emt 00:00:04]} 83.
Kc3 {[%clk 00:00:26]} {[%emt 00:00:01]} a4 {[%clk 00:00:48]} {[%emt 00:00:05]}
84. Ng2 {[%clk 00:00:29]} {[%emt 00:00:02]} Kd6 {[%clk 00:00:47]} {[%emt
00:00:06]} 85. Kb2 {[%clk 00:00:32]} {[%emt 00:00:02]} Ke5 {[%clk 00:00:49]}
{[%emt 00:00:03]} 86. Ne1 {[%clk 00:00:28]} {[%emt 00:00:08]} Ke4 {[%clk
00:00:52]} {[%emt 00:00:02]} 87. Kc3 {[%clk 00:00:28]} {[%emt 00:00:05]} Ba5+
{[%clk 00:00:52]} {[%emt 00:00:06]} 88. Kb2 {[%clk 00:00:31]} {[%emt 00:00:02]}
0-1